fUST/lending_fUST_20250206
["ID","MTS","AMOUNT","RATE_DAILY","PERIOD"]
[351816999,1738799445436,-500.0,0.00013698,2]
[351817000,1738799445446,-500.0,0.00013698,2]
[351817001,1738799445456,-500.0,0.00013698,2]
[351817002,1738799445465,-500.0,0.00013698,2]
[351817003,1738799445476,-598.3233205,0.00013698,2]
[351817004,1738799445486,-504.39,0.00013698,2]
[351817005,1738799445496,-500.0,0.00013698,2]
[351817006,1738799445506,-500.0,0.00013698,2]
[351817007,1738799445516,-500.0,0.00013698,2]
[351817008,1738799445525,-500.0,0.00013698,2]
[351817009,1738799445535,-531.33,0.00013698,2]
[351817010,1738799445544,-2672.060922,0.00013699,2]
[351817011,1738799445554,-150.87033597,0.00013699,2]
[351817013,1738799445563,-500.0,0.00013699,2]
[351817014,1738799445573,-500.0,0.00013699,2]
[351817015,1738799445582,-500.0,0.00013699,2]
[351817016,1738799445591,-500.0,0.00013699,2]
[351817017,1738799445600,-500.0,0.00013699,2]
[351817018,1738799445610,-500.0,0.00013699,2]
[351817019,1738799445619,-500.0,0.00013699,2]
[351817020,1738799445628,-500.0,0.00013699,2]
[351817021,1738799445637,-500.0,0.00013699,2]
[351817022,1738799445647,-500.0,0.00013699,2]
[351817023,1738799445656,-331.80206854,0.00013699,2]
[351817024,1738799445665,-500.0,0.00013699,2]
[351817025,1738799445676,-500.0,0.00013699,2]
[351817026,1738799445685,-500.0,0.00013699,2]
[351817027,1738799445696,-500.0,0.00013699,2]
[351817028,1738799445705,-500.0,0.00013699,2]
[351817029,1738799445714,-500.0,0.00013699,2]
[351817030,1738799445724,-500.0,0.00013699,2]
[351817031,1738799445734,-500.0,0.00013699,2]
[351817033,1738799445743,-500.0,0.00013699,2]
[351817034,1738799445753,-500.0,0.00013699,2]
[351817035,1738799445763,-500.0,0.00013699,2]
[351817036,1738799445773,-500.0,0.00013699,2]
[351817037,1738799445783,-500.0,0.00013699,2]
[351817038,1738799445794,-500.0,0.00013699,2]
[351817039,1738799445804,-500.0,0.00013699,2]
[351817040,1738799445814,-500.0,0.00013699,2]
[351817041,1738799445823,-500.0,0.00013699,2]
[351817042,1738799445833,-500.0,0.00013699,2]
[351817043,1738799445843,-500.0,0.00013699,2]
[351817044,1738799445853,-186.73821274,0.00013699,2]
[351817045,1738799445863,-500.0,0.00013699,2]
[351817046,1738799445872,-500.0,0.00013699,2]
[351817047,1738799445882,-500.0,0.00013699,2]
[351817048,1738799445891,-500.0,0.00013699,2]
[351817050,1738799445900,-500.0,0.00013699,2]
[351817051,1738799445910,-500.0,0.00013699,2]
[351817053,1738799445919,-500.0,0.00013699,2]
[351817055,1738799445929,-500.0,0.00013699,2]
[351817057,1738799445939,-500.0,0.00013699,2]
[351817059,1738799445949,-499.99999999,0.00013699,2]
[351817061,1738799445959,-1437.53426855,0.00013699,2]
[351817063,1738799445968,-1437.53426855,0.00013699,2]
[351817065,1738799445977,-1437.53426855,0.00013699,2]
[351817067,1738799445987,-1437.53426855,0.00013699,2]
[351817069,1738799445997,-1437.53426855,0.00013699,2]
[351817071,1738799446006,-1437.53426855,0.00013699,2]
[351817072,1738799446015,-1437.53426855,0.00013699,2]
[351817073,1738799446025,-1437.53426855,0.00013699,2]
[351817074,1738799446034,-1437.53426855,0.00013699,2]
[351817075,1738799446043,-1437.53426855,0.00013699,2]
[351817076,1738799446052,-1437.53426855,0.00013699,2]
[351817077,1738799446062,-1437.53426855,0.00013699,2]
[351817078,1738799446071,-1437.53426855,0.00013699,2]
[351817079,1738799446080,-1437.53426855,0.00013699,2]
[351817080,1738799446090,-1437.53426855,0.00013699,2]
[351817081,1738799446100,-1437.53426855,0.00013699,2]
[351817082,1738799446109,-1437.53426855,0.00013699,2]
[351817083,1738799446120,-1437.53426855,0.00013699,2]
[351817084,1738799446130,-1437.53426855,0.00013699,2]
[351817085,1738799446139,-1437.53426855,0.00013699,2]
[351817086,1738799446149,-1437.53426855,0.00013699,2]
[351817087,1738799446159,-1437.53426855,0.00013699,2]
[351817088,1738799446169,-1437.53426855,0.00013699,2]
[351817089,1738799446180,-1437.53426855,0.00013699,2]
[351817090,1738799446190,-1437.53426855,0.00013699,2]
[351817091,1738799446199,-1437.53426855,0.00013699,2]
[351817092,1738799446209,-1437.53426855,0.00013699,2]
[351817093,1738799446219,-1437.53426855,0.00013699,2]
[351817094,1738799446229,-1437.53426855,0.00013699,2]
[351817095,1738799446239,-1437.53426855,0.00013699,2]
[351817096,1738799446249,-1437.53426855,0.00013699,2]
[351817097,1738799446258,-1437.53426855,0.00013699,2]
[351817098,1738799446267,-1437.53426855,0.00013699,2]
[351817099,1738799446276,-1437.53426855,0.00013699,2]
[351817100,1738799446286,-1437.53426855,0.00013699,2]
[351817101,1738799446295,-1437.53426855,0.00013699,2]
[351817102,1738799446305,-1437.53426855,0.00013699,2]
[351817103,1738799446315,-1437.53426855,0.00013699,2]
[351817104,1738799446325,-1437.53426855,0.00013699,2]
[351817105,1738799446335,-1437.53426855,0.00013699,2]
[351817106,1738799446345,-1437.53426855,0.00013699,2]
[351817107,1738799446360,-1437.53426855,0.00013699,2]
[351817108,1738799446370,-1437.53426855,0.00013699,2]
[351817109,1738799446379,-1437.53426855,0.00013699,2]
[351817110,1738799446389,-1437.53426855,0.00013699,2]
[351817111,1738799446398,-1381.16037568,0.00013699,2]
[351817112,1738799446409,-1381.16037568,0.00013699,2]
[351817113,1738799446419,-1381.16037568,0.00013699,2]
[351817114,1738799446430,-1381.16037568,0.00013699,2]
[351817115,1738799446440,-1381.16037568,0.00013699,2]
[351817116,1738799446450,-1381.16037568,0.00013699,2]
[351817117,1738799446460,-1381.16037568,0.00013699,2]
[351817118,1738799446469,-1381.16037568,0.00013699,2]
[351817119,1738799446478,-1381.16037568,0.00013699,2]
[351817120,1738799446487,-1381.16037568,0.00013699,2]
[351817121,1738799446496,-1381.16037568,0.00013699,2]
[351817122,1738799446505,-1381.16037568,0.00013699,2]
[351817123,1738799446515,-1381.16037568,0.00013699,2]
[351817124,1738799446524,-1381.16037568,0.00013699,2]
[351817125,1738799446533,-1381.16037568,0.00013699,2]
[351817126,1738799446542,-1381.16037568,0.00013699,2]
[351817127,1738799446551,-1381.16037564,0.00013699,2]
[351817128,1738799446560,-151.0,0.000137,2]
[351817129,1738799446569,-12262.63855632,0.00013723,2]
[351817130,1738799446579,-151.0,0.000138,2]
[351817131,1738799446588,-151.0,0.000138,2]
[351817132,1738799446597,-151.0,0.000138,2]
[351817133,1738799446606,-151.0,0.000138,2]
[351817134,1738799446615,-151.0,0.000138,2]
[351817135,1738799446625,-151.0,0.000138,2]
[351817136,1738799446634,-151.0,0.000138,2]
[351817137,1738799446644,-151.0,0.000138,2]
[351817138,1738799446653,-151.0,0.000138,2]
[351817139,1738799446663,-151.0,0.000138,2]
[351817140,1738799446675,-540.54,0.00013835,2]
[351817141,1738799446684,-183.96502009,0.00013835,2]
[351817142,1738799446694,-500.0,0.00013835,2]
[351817143,1738799446703,-500.0,0.00013835,2]
[351817144,1738799446712,-500.0,0.00013835,2]
[351817145,1738799446721,-500.0,0.00013835,2]
[351817146,1738799446731,-178.87771054,0.00013835,2]
[351817147,1738799446740,-500.0,0.00013835,2]
[351817148,1738799446749,-500.0,0.00013835,2]
[351817149,1738799446758,-500.0,0.00013835,2]
[351817150,1738799446769,-500.0,0.00013835,2]
[351817151,1738799446778,-505.14556761,0.00013835,2]
[351817152,1738799446787,-500.0,0.00013835,2]
[351817153,1738799446797,-500.0,0.00013835,2]
[351817154,1738799446807,-503.28480552,0.00013835,2]
[351817155,1738799446816,-500.0,0.00013835,2]
[351817156,1738799446826,-500.0,0.00013835,2]
[351817157,1738799446835,-500.0,0.00013835,2]
[351817158,1738799446845,-551.65,0.00013835,2]
[351817159,1738799446854,-500.0,0.00013835,2]
[351817160,1738799446863,-500.0,0.00013835,2]
[351817161,1738799446873,-500.0,0.00013835,2]
[351817162,1738799446883,-500.0,0.00013835,2]
[351817163,1738799446893,-500.0,0.00013835,2]
[351817164,1738799446902,-500.0,0.00013835,2]
[351817165,1738799446913,-500.0,0.00013835,2]
[351817166,1738799446922,-500.0,0.00013835,2]
[351817167,1738799446937,-500.0,0.00013835,2]
[351817168,1738799446946,-500.0,0.00013835,2]
[351817169,1738799446957,-500.0,0.00013835,2]
[351817170,1738799446968,-512.38,0.00013835,2]
[351817171,1738799446979,-500.0,0.00013835,2]
[351817172,1738799446988,-500.0,0.00013835,2]
[351817173,1738799446999,-500.0,0.00013835,2]
[351817174,1738799447009,-507.76093265,0.00013835,2]
[351817175,1738799447019,-500.0,0.00013835,2]
[351817176,1738799447030,-355.3931408,0.00013835,2]
[351817177,1738799447041,-500.0,0.00013835,2]
[351817178,1738799447051,-1290.78,0.00013835,2]
[351817179,1738799447063,-503.08340176,0.00013835,2]
[351817180,1738799447073,-500.0,0.00013835,2]
[351817181,1738799447084,-660.02,0.00013835,2]
[351817182,1738799447095,-503.33780884,0.00013835,2]
[351817183,1738799447106,-500.0,0.00013835,2]
[351817184,1738799447116,-500.0,0.00013835,2]
[351817185,1738799447127,-500.0,0.00013835,2]
[351817186,1738799447138,-462.59792942,0.00013835,2]
[351817187,1738799447148,-500.0,0.00013835,2]
[351817188,1738799447159,-647.87,0.00013835,2]
[351817189,1738799447169,-500.0,0.00013835,2]
[351817190,1738799447187,-231.85519623,0.00013835,2]
[351817191,1738799447197,-500.0,0.00013835,2]
[351817192,1738799447207,-500.0,0.00013835,2]
[351817193,1738799447218,-500.0,0.00013835,2]
[351817194,1738799447228,-500.0,0.00013835,2]
[351817195,1738799447238,-500.0,0.00013835,2]
[351817196,1738799447251,-500.0,0.00013835,2]
[351817197,1738799447262,-500.0,0.00013835,2]
[351817198,1738799447272,-951.76,0.00013835,2]
[351817199,1738799447283,-500.0,0.00013835,2]
[351817200,1738799447294,-500.0,0.00013835,2]
[351817201,1738799447305,-500.0,0.00013835,2]
[351817202,1738799447315,-500.0,0.00013835,2]
[351817203,1738799447325,-500.0,0.00013835,2]
[351817204,1738799447334,-500.0,0.00013835,2]
[351817205,1738799447345,-500.0,0.00013835,2]
[351817206,1738799447358,-500.0,0.00013835,2]
[351817207,1738799447369,-500.0,0.00013835,2]
[351817208,1738799447379,-500.0,0.00013835,2]
[351817209,1738799447390,-527.87,0.00013835,2]
[351817210,1738799447400,-500.0,0.00013835,2]
[351817211,1738799447410,-500.0,0.00013835,2]
[351817212,1738799447420,-500.0,0.00013835,2]
[351817213,1738799447437,-500.0,0.00013835,2]
[351817214,1738799447447,-500.0,0.00013835,2]
[351817215,1738799447457,-216.85421115,0.00013835,2]
[351817216,1738799447467,-500.0,0.00013835,2]
[351817217,1738799447477,-658.38,0.00013835,2]
[351817218,1738799447487,-899.57,0.00013835,2]
[351817219,1738799447497,-526.66492609,0.00013835,2]
[351817220,1738799447506,-500.0,0.00013835,2]
[351817221,1738799447516,-587.49,0.00013835,2]
[351817222,1738799447526,-500.0,0.00013835,2]
[351817223,1738799447535,-500.0,0.00013835,2]
[351817224,1738799447545,-503.29,0.00013835,2]
[351817225,1738799447555,-634.75,0.00013835,2]
[351817226,1738799447564,-536.31,0.00013835,2]
[351817227,1738799447574,-709.24,0.00013835,2]
[351817228,1738799447583,-740.19,0.00013835,2]
[351817229,1738799447593,-500.0,0.00013835,2]
[351817230,1738799447603,-500.0,0.00013835,2]
[351817231,1738799447613,-500.0,0.00013835,2]
[351817232,1738799447623,-581.39,0.00013835,2]
[351817233,1738799447633,-500.0,0.00013835,2]
[351817234,1738799447643,-1238.77,0.00013835,2]
[351817235,1738799447653,-1542.65,0.00013835,2]
[351817236,1738799447663,-500.0,0.00013835,2]
[351817237,1738799447673,-500.0,0.00013835,2]
[351817238,1738799447685,-580.82237321,0.00013835,2]
[351817239,1738799447696,-1000.0,0.00013835,2]
[351817240,1738799447706,-523.04,0.00013835,2]
[351817241,1738799447715,-500.0,0.00013835,2]
[351817242,1738799447725,-500.0,0.00013835,2]
[351817243,1738799447864,-500.0,0.00013835,2]
[351817244,1738799447879,-500.0,0.00013835,2]
[351817245,1738799447890,-521.62,0.00013835,2]
[351817246,1738799447900,-500.0,0.00013835,2]
[351817247,1738799447910,-519.32,0.00013835,2]
[351817248,1738799447920,-500.0,0.00013835,2]
[351817249,1738799447932,-198.34818467,0.00013835,2]
[351817250,1738799447942,-500.0,0.00013835,2]
[351817251,1738799447953,-547.12,0.00013835,2]
[351817252,1738799447964,-1312.89,0.00013835,2]
[351817253,1738799447974,-1003.19,0.00013835,2]
[351817254,1738799447985,-595.88,0.00013835,2]
[351817255,1738799447995,-500.0,0.00013835,2]
[351817256,1738799448006,-500.0,0.00013835,2]
[351817257,1738799448015,-501.84965997,0.00013835,2]
[351817258,1738799448027,-500.0,0.00013835,2]
[351817259,1738799448037,-779.68,0.00013835,2]
[351817260,1738799448049,-1057.63,0.00013835,2]
[351817261,1738799448060,-500.0,0.00013835,2]
[351817262,1738799448070,-500.0,0.00013835,2]
[351817263,1738799448081,-500.0,0.00013835,2]
[351817264,1738799448097,-1109.39,0.00013835,2]
[351817265,1738799448107,-503.42511213,0.00013835,2]
[351817266,1738799448118,-500.0,0.00013835,2]
[351817267,1738799448130,-500.0,0.00013835,2]
[351817268,1738799448141,-676.12,0.00013835,2]
[351817269,1738799448153,-500.0,0.00013835,2]
[351817270,1738799448163,-500.0,0.00013835,2]
[351817271,1738799448176,-885.54,0.00013835,2]
[351817272,1738799448188,-500.0,0.00013835,2]
[351817273,1738799448199,-555.01,0.00013835,2]
[351817274,1738799448209,-928.77,0.00013835,2]
[351817275,1738799448220,-726.75,0.00013835,2]
[351817276,1738799448231,-500.0,0.00013835,2]
[351817277,1738799448242,-500.0,0.00013835,2]
[351817278,1738799448252,-500.0,0.00013835,2]
[351817279,1738799448260,-500.0,0.00013835,2]
[351817280,1738799448272,-526.06,0.00013835,2]
[351817281,1738799448282,-500.0,0.00013835,2]
[351817282,1738799448292,-2644.5,0.00013835,2]
[351817283,1738799448302,-1704.64,0.00013835,2]
[351817284,1738799448312,-500.0,0.00013835,2]
[351817285,1738799448323,-528.8340969,0.00013835,2]
[351817286,1738799448333,-500.0,0.00013835,2]
[351817287,1738799448344,-500.0,0.00013835,2]
[351817288,1738799448358,-500.0,0.00013835,2]
[351817289,1738799448370,-500.0,0.00013835,2]
[351817290,1738799448381,-639.8,0.00013835,2]
[351817291,1738799448393,-500.0,0.00013835,2]
[351817292,1738799448404,-505.1433936,0.00013835,2]
[351817293,1738799448416,-2717.88,0.00013835,2]
[351817294,1738799448429,-500.0,0.00013835,2]
[351817295,1738799448441,-500.0,0.00013835,2]
[351817296,1738799448451,-500.0,0.00013835,2]
[351817297,1738799448461,-768.59,0.00013835,2]
[351817298,1738799448472,-352.54752496,0.00013835,2]
[351817299,1738799448481,-500.0,0.00013835,2]
[351817300,1738799448492,-500.0,0.00013835,2]
[351817301,1738799448502,-500.0,0.00013835,2]
[351817302,1738799448513,-642.66,0.00013835,2]
[351817303,1738799448523,-1300.92,0.00013835,2]
[351817304,1738799448534,-500.0,0.00013835,2]
[351817305,1738799448544,-500.0,0.00013835,2]
[351817306,1738799448555,-500.0,0.00013835,2]
[351817307,1738799448564,-1067.16,0.00013835,2]
[351817308,1738799448574,-1124.07,0.00013835,2]
[351817309,1738799448583,-500.0,0.00013835,2]
[351817310,1738799448593,-500.0,0.00013835,2]
[351817311,1738799448602,-500.0,0.00013835,2]
[351817312,1738799448613,-577.43,0.00013835,2]
[351817313,1738799448622,-604.63,0.00013835,2]
[351817314,1738799448630,-500.0,0.00013835,2]
[351817315,1738799448640,-500.0,0.00013835,2]
[351817316,1738799448651,-535.12,0.00013835,2]
[351817317,1738799448661,-500.0,0.00013835,2]
[351817318,1738799448672,-500.0,0.00013835,2]
[351817319,1738799448685,-500.0,0.00013835,2]
[351817320,1738799448696,-936.13,0.00013835,2]
[351817321,1738799448706,-748.49,0.00013835,2]
[351817322,1738799448717,-505.74199132,0.00013835,2]
[351817323,1738799448728,-536.18,0.00013835,2]
[351817324,1738799448739,-880.1,0.00013835,2]
[351817325,1738799448750,-500.0,0.00013835,2]
[351817326,1738799448762,-507.09,0.00013835,2]
[351817327,1738799448773,-500.0,0.00013835,2]
[351817328,1738799448785,-500.0,0.00013835,2]
[351817329,1738799448795,-750.27,0.00013835,2]
[351817330,1738799448806,-1232.8,0.00013835,2]
[351817331,1738799448817,-500.0,0.00013835,2]
[351817332,1738799448828,-500.0,0.00013835,2]
[351817333,1738799448839,-1654.34,0.00013835,2]
[351817334,1738799448850,-3192.99,0.00013835,2]
[351817335,1738799448861,-667.81,0.00013835,2]
[351817336,1738799448873,-738.39,0.00013835,2]
[351817337,1738799448884,-500.0,0.00013835,2]
[351817338,1738799448895,-500.0,0.00013835,2]
[351817339,1738799448905,-668.64,0.00013835,2]
[351817340,1738799448917,-575.4,0.00013835,2]
[351817341,1738799448928,-1339.99,0.00013835,2]
[351817342,1738799448939,-513.07,0.00013835,2]
[351817343,1738799448950,-500.0,0.00013835,2]
[351817344,1738799448961,-1411.9,0.00013835,2]
[351817345,1738799448970,-500.0,0.00013835,2]
[351817346,1738799448980,-500.0,0.00013835,2]
[351817347,1738799448989,-1000.0,0.00013835,2]
[351817348,1738799448999,-1282.8,0.00013835,2]
[351817349,1738799449010,-500.0,0.00013835,2]
[351817350,1738799449020,-500.0,0.00013835,2]
[351817351,1738799449031,-500.0,0.00013835,2]
[351817352,1738799449041,-501.20315006,0.00013835,2]
[351817353,1738799449051,-500.0,0.00013835,2]
[351817354,1738799449061,-500.0,0.00013835,2]
[351817355,1738799449070,-500.0,0.00013835,2]
[351817356,1738799449080,-500.0,0.00013835,2]
[351817357,1738799449090,-585.97,0.00013835,2]
[351817358,1738799449100,-500.0,0.00013835,2]
[351817359,1738799449110,-500.0,0.00013835,2]
[351817360,1738799449121,-500.0,0.00013835,2]
[351817361,1738799449130,-500.0,0.00013835,2]
[351817362,1738799449140,-500.0,0.00013835,2]
[351817363,1738799449151,-503.09337898,0.00013835,2]
[351817364,1738799449160,-500.0,0.00013835,2]
[351817365,1738799449170,-500.0,0.00013835,2]
[351817366,1738799449183,-500.0,0.00013835,2]
[351817367,1738799449194,-500.0,0.00013835,2]
[351817368,1738799449204,-151.0,0.00013835,2]
[351817369,1738799449214,-500.0,0.00013835,2]
[351817370,1738799449226,-780.32,0.00013835,2]
[351817371,1738799449236,-500.0,0.00013835,2]
[351817372,1738799449247,-509.89494852,0.00013835,2]
[351817373,1738799449256,-500.0,0.00013835,2]
[351817374,1738799449265,-151.0,0.00013835,2]
[351817375,1738799449275,-384.74465981,0.00013835,2]
[351817376,1738799449286,-768.15,0.00013835,2]
[351817377,1738799449295,-500.0,0.00013835,2]
[351817378,1738799449305,-500.0,0.00013835,2]
[351817379,1738799449314,-500.0,0.00013835,2]
[351817380,1738799449324,-500.0,0.00013835,2]
[351817381,1738799449334,-152.554602,0.00013835,2]
[351817382,1738799449345,-500.0,0.00013835,2]
[351817383,1738799449356,-500.0,0.00013835,2]
[351817384,1738799449366,-422.51255311,0.00013835,2]
[351817385,1738799449375,-595.06,0.00013835,2]
[351817386,1738799449386,-500.0,0.00013835,2]
[351817387,1738799449396,-500.0,0.00013835,2]
[351817388,1738799449406,-151.0,0.00013835,2]
[351817389,1738799449416,-500.0,0.00013835,2]
[351817390,1738799449429,-2607.98,0.00013835,2]
[351817391,1738799449440,-710.56,0.00013835,2]
[351817392,1738799449450,-759.54,0.00013835,2]
[351817393,1738799449461,-2329.3,0.00013835,2]
[351817394,1738799449471,-500.0,0.00013835,2]
[351817395,1738799449481,-853.45,0.00013835,2]
[351817396,1738799449491,-500.0,0.00013835,2]
[351817397,1738799449501,-500.0,0.00013835,2]
[351817398,1738799449511,-500.0,0.00013835,2]
[351817399,1738799449521,-576.69,0.00013835,2]
[351817400,1738799449530,-500.0,0.00013835,2]
[351817401,1738799449540,-151.0,0.00013835,2]
[351817402,1738799449550,-500.0,0.00013835,2]
[351817403,1738799449560,-500.0,0.00013835,2]
[351817404,1738799449570,-500.0,0.00013835,2]
[351817405,1738799449580,-500.0,0.00013835,2]
[351817406,1738799449590,-151.0,0.00013835,2]
[351817407,1738799449600,-500.0,0.00013835,2]
[351817408,1738799449610,-153.324186,0.00013835,2]
[351817409,1738799449620,-500.0,0.00013835,2]
[351817410,1738799449630,-500.0,0.00013835,2]
[351817411,1738799449639,-500.0,0.00013835,2]
[351817412,1738799449650,-500.0,0.00013835,2]
[351817413,1738799449660,-500.0,0.00013835,2]
[351817414,1738799449669,-151.0,0.00013835,2]
[351817415,1738799449681,-500.0,0.00013835,2]
[351817416,1738799449691,-500.0,0.00013835,2]
[351817417,1738799449700,-500.0,0.00013835,2]
[351817418,1738799449710,-500.0,0.00013835,2]
[351817419,1738799449720,-151.0,0.00013835,2]
[351817420,1738799449730,-500.0,0.00013835,2]
[351817421,1738799449740,-500.0,0.00013835,2]
[351817422,1738799449749,-169.99447994,0.00013835,2]
[351817423,1738799449759,-749.53,0.00013835,2]
[351817424,1738799449769,-271.21503122,0.00013835,2]
[351817425,1738799449779,-500.0,0.00013835,2]
[351817426,1738799449789,-1095.18,0.00013835,2]
[351817427,1738799449799,-949.41,0.00013835,2]
[351817428,1738799449809,-151.0,0.00013835,2]
[351817429,1738799449818,-500.0,0.00013835,2]
[351817430,1738799449828,-500.0,0.00013835,2]
[351817431,1738799449837,-4757.93,0.00013835,2]
[351817432,1738799449847,-2120.69,0.00013835,2]
[351817433,1738799449857,-500.0,0.00013835,2]
[351817434,1738799449867,-11477.77,0.00013835,2]
[351817435,1738799449876,-500.0,0.00013835,2]
[351817436,1738799449886,-1354.82,0.00013835,2]
[351817437,1738799449896,-2256.07,0.00013835,2]
[351817438,1738799449905,-500.0,0.00013835,2]
[351817439,1738799449915,-999.32,0.00013835,2]
[351817440,1738799449925,-500.0,0.00013835,2]
[351817441,1738799449935,-500.0,0.00013835,2]
[351817442,1738799449944,-500.0,0.00013835,2]
[351817443,1738799449954,-1313.44,0.00013835,2]
[351817444,1738799449965,-151.0,0.00013835,2]
[351817445,1738799449976,-500.0,0.00013835,2]
[351817446,1738799449985,-500.0,0.00013835,2]
[351817447,1738799449995,-500.0,0.00013835,2]
[351817448,1738799450005,-1847.72,0.00013835,2]
[351817449,1738799450015,-500.0,0.00013835,2]
[351817450,1738799450025,-500.0,0.00013835,2]
[351817451,1738799450035,-500.0,0.00013835,2]
[351817452,1738799450045,-4947.19,0.00013835,2]
[351817453,1738799450055,-500.0,0.00013835,2]
[351817454,1738799450064,-500.0,0.00013835,2]
[351817455,1738799450074,-500.0,0.00013835,2]
[351817456,1738799450083,-34091.8,0.00013835,2]
[351817457,1738799450093,-583.52863974,0.00013835,2]
[351817458,1738799450102,-500.0,0.00013835,2]
[351817459,1738799450111,-500.0,0.00013835,2]
[351817460,1738799450298,-623.79,0.00013835,2]
[351817461,1738799450308,-500.0,0.00013835,2]
[351817462,1738799450317,-788.4,0.00013835,2]
[351817463,1738799450327,-151.0,0.00013835,2]
[351817464,1738799450338,-500.0,0.00013835,2]
[351817465,1738799450349,-500.0,0.00013835,2]
[351817466,1738799450362,-6480.41,0.00013835,2]
[351817467,1738799450372,-914.17,0.00013835,2]
[351817468,1738799450382,-398.76486589,0.00013835,2]
[351817469,1738799450391,-500.0,0.00013835,2]
[351817470,1738799450402,-151.0,0.00013835,2]
[351817471,1738799450412,-500.0,0.00013835,2]
[351817472,1738799450421,-500.0,0.00013835,2]
[351817473,1738799450431,-500.0,0.00013835,2]
[351817474,1738799450440,-500.0,0.00013835,2]
[351817475,1738799450450,-4136.54,0.00013835,2]
[351817476,1738799450459,-500.0,0.00013835,2]
[351817477,1738799450469,-500.0,0.00013835,2]
[351817478,1738799450478,-910.48,0.00013835,2]
[351817479,1738799450488,-500.0,0.00013835,2]
[351817480,1738799450499,-500.0,0.00013835,2]
[351817481,1738799450509,-500.0,0.00013835,2]
[351817482,1738799450518,-1288.95,0.00013835,2]
[351817483,1738799450528,-500.0,0.00013835,2]
[351817484,1738799450537,-500.0,0.00013835,2]
[351817485,1738799450547,-540.18,0.00013835,2]
[351817486,1738799450557,-500.0,0.00013835,2]
[351817487,1738799450568,-500.0,0.00013835,2]
[351817488,1738799450578,-500.0,0.00013835,2]
[351817489,1738799450588,-500.0,0.00013835,2]
[351817490,1738799450597,-500.0,0.00013835,2]
[351817491,1738799450607,-500.0,0.00013835,2]
[351817492,1738799450617,-500.0,0.00013835,2]
[351817493,1738799450626,-500.0,0.00013835,2]
[351817494,1738799450635,-500.0,0.00013835,2]
[351817495,1738799450645,-379.45244797,0.00013835,2]
[351817496,1738799450655,-2165.79,0.00013835,2]
[351817497,1738799450665,-500.0,0.00013835,2]
[351817498,1738799450674,-2095.74,0.00013835,2]
[351817499,1738799450685,-500.0,0.00013835,2]
[351817500,1738799450694,-500.0,0.00013835,2]
[351817501,1738799450704,-465.97352666,0.00013835,2]
[351817502,1738799450713,-658.65,0.00013835,2]
[351817503,1738799450723,-810.05,0.00013835,2]
[351817504,1738799450732,-743.8,0.00013835,2]
[351817505,1738799450742,-500.0,0.00013835,2]
[351817506,1738799450751,-5282.74,0.00013835,2]
[351817507,1738799450762,-500.0,0.00013835,2]
[351817508,1738799450773,-230.18554724,0.00013835,2]
[351817509,1738799450782,-2187.08,0.00013835,2]
[351817510,1738799450792,-500.0,0.00013835,2]
[351817511,1738799450802,-500.0,0.00013835,2]